{"text_format":"1","workbook":"xlsx","n_sheets":3,"sheets":["Inicio","Buscar","Fechas"],"not_rendered":{"charts":0,"images":0,"macros":1,"external_links":0,"defined_names":0,"comments":0,"pivot_tables":0},"unopened":[],"bounds":{"document_bytes":16777216,"sheet_cells":100000,"rows_first":2000,"rows_last":500,"rows_between":2000,"halvings":0,"cell_chars":16384,"cell_head_chars":4096},"cells_cut":0,"cells_raw":0,"read":"whole","date_system":"1900"}

{"sheet":"Inicio","index":0,"n_rows":17,"n_cols":10,"rows_kept":17,"cut":false,"hidden":false,"merged":[]}
[null,null,null,null,"PERU LLEGARA AL MUNDIAL?"]
[]
["Eliminatorias"]
[]
[]
[]
[]
[null,"Equipo","Pts.","Partidos Jugados","Partidos Ganados","Partido empatados","Partidos Perdidos","Goles a favor","Goles en contra","Goles de diferencia"]
[null,"Chile",{"$f":"E9*3+F9","v":12},{"$f":"SUM(E9:G9)","v":6},4,0,2,11,10,{"$f":"H9-I9","v":1}]
[null,"Uruguay",{"$f":"E10*3+F10","v":11},{"$f":"SUM(E10:G10)","v":5},3,2,0,14,6,{"$f":"H10-I10","v":8}]
[null,"Argentina",{"$f":"E11*3+F11","v":10},{"$f":"SUM(E11:G11)","v":5},3,1,1,11,4,{"$f":"H11-I11","v":7}]
[null,"Ecuador",{"$f":"E12*3+F12","v":9},{"$f":"SUM(E12:G12)","v":5},3,0,2,6,6,{"$f":"H12-I12","v":0}]
[null,"Venezuela",{"$f":"E13*3+F13","v":8},{"$f":"SUM(E13:G13)","v":6},2,2,2,4,6,{"$f":"H13-I13","v":-2}]
[null,"Colombia",{"$f":"E14*3+F14","v":7},{"$f":"SUM(E14:G14)","v":5},2,1,2,5,5,{"$f":"H14-I14","v":0}]
[null,"Bolivia",{"$f":"E15*3+F15","v":4},{"$f":"SUM(E15:G15)","v":6},1,1,4,7,11,{"$f":"H15-I15","v":-4}]
[null,"Paraguay",{"$f":"E16*3+F16","v":4},{"$f":"SUM(E16:G16)","v":5},1,1,3,4,9,{"$f":"H16-I16","v":-5}]
[null,"Perú",{"$f":"E17*3+F17","v":3},{"$f":"SUM(E17:G17)","v":5},1,0,4,6,11,{"$f":"H17-I17","v":-5}]

{"sheet":"Buscar","index":1,"n_rows":13,"n_cols":6,"rows_kept":13,"cut":false,"hidden":false,"merged":[]}
[]
[]
[]
[]
[]
[]
[]
[null,null,null,null,null,"VS"]
[null,null,null,null,null,"VS"]
[null,null,null,null,null,"VS"]
[null,null,null,null,null,"VS"]
[]
[null,null,null,null,"Descansa         :"]

{"sheet":"Fechas","index":2,"n_rows":31,"n_cols":9,"rows_kept":31,"cut":false,"hidden":false,"merged":[]}
["Fecha","Local","Score-Local","Score-Visitante","Visitante","Descansa","Ganador","Perdedor","Empate"]
["Fecha 1","uruguay",4,2,"bolivia",null,"uruguay","bolivia"]
["Fecha 1","peru",2,0,"paraguay",null,"peru","paraguay"]
["Fecha 1","argentina",4,1,"chile",null,"argentina","chile"]
["Fecha 1","ecuador",2,0,"venezuela",null,"ecuador","venezuela"]
["Fecha 1",null,null,null,null,"colombia"]
["Fecha 2","venezuela",1,0,"argentina",null,"venezuela","argentina"]
["Fecha 2","paraguay",1,1,"uruguay",null,null,null,"empate"]
["Fecha 2","chile",4,2,"peru",null,"chile","peru"]
["Fecha 2","bolivia",1,2,"colombia",null,"colombia","bolivia"]
["Fecha 2",null,null,null,null,"ecuador"]
["Fecha 3","argentina",1,1,"bolivia",null,null,null,"empate"]
["Fecha 3","paraguay",2,1,"ecuador",null,"paraguay","ecuador"]
["Fecha 3","uruguay",4,0,"chile",null,"uruguay","chile"]
["Fecha 3","colombia",1,1,"venezuela",null,null,null,"empate"]
["Fecha 3",null,null,null,null,"peru"]
["Fecha 4","colombia",1,2,"argentina",null,"argentina","colombia"]
["Fecha 4","venezuela",1,0,"bolivia",null,"venezuela","bolivia"]
["Fecha 4","chile",2,0,"paraguay",null,"chile","paraguay"]
["Fecha 4","ecuador",2,0,"peru",null,"ecuador","peru"]
["Fecha 4",null,null,null,null,"uruguay"]
["Fecha 5","argentina",4,0,"ecuador",null,"argentina","ecuador"]
["Fecha 5","bolivia",0,2,"chile",null,"chile","bolivia"]
["Fecha 5","peru",0,1,"colombia",null,"colombia","peru"]
["Fecha 5","uruguay",1,1,"venezuela",null,null,null,"empate"]
["Fecha 5",null,null,null,null,"paraguay"]
["Fecha 6","bolivia",3,1,"paraguay",null,"bolivia","paraguay"]
["Fecha 6","venezuela",0,2,"chile",null,"chile","venezuela"]
["Fecha 6","uruguay",4,2,"peru",null,"uruguay","peru"]
["Fecha 6","ecuador",1,0,"colombia",null,"ecuador","colombia"]
["Fecha 6",null,null,null,null,"argentina"]